bitfinex/quotes_SOLUSD_20260309
["timestamp","ask_amount","ask_price","bid_price","bid_amount"]
[1773023371610,0.92853645,81.979,81.934,0.9738711]
[1773023371786,0.92853645,81.959,81.903,0.9738711]
[1773023371988,0.92853645,81.949,81.905,0.9738711]
[1773023372186,0.92853645,81.949,81.904,42.73295565]
[1773023372703,0.92853645,81.949,81.905,0.9738711]
[1773023375010,4.5720946,81.95,81.886,0.28432314]
[1773023375011,1.0265758,81.947,81.907,0.95148753]
[1773023376308,1.0265758,81.939,81.907,0.95148753]
[1773023376811,1.0265758,81.939,81.906,12.20911776]
[1773023377105,12.20434963,81.938,81.901,12.20986312]
[1773023377285,1.0265758,81.937,81.901,13.16135065]
[1773023377489,1.0265758,81.937,81.902,0.95148753]
[1773023377686,4.5720946,81.93,81.886,31.48155877]
[1773023377995,1.0265758,81.929,81.888,0.95148753]
[1773023378190,1.0265758,81.929,81.887,12.21195061]
[1773023378396,1.0265758,81.919,81.887,12.21195061]
[1773023379398,1.0265758,81.925,81.884,0.95148753]
[1773023379602,1.0265758,81.923,81.884,0.95148753]
[1773023381215,1.0265758,81.921,81.886,0.95148753]
[1773023382521,1.0265758,81.919,81.886,0.95148753]
[1773023383307,1.0265758,81.917,81.887,12.21195061]
[1773023385007,1.0265758,81.917,81.88,12.21294539]
[1773023385199,1.0265758,81.914,81.871,12.21433718]
[1773023385403,1.0265758,81.913,81.872,0.95148753]
[1773023386908,1.0265758,81.909,81.872,0.95148753]
[1773023387497,1.0265758,81.909,81.874,0.95148753]
[1773023388399,12.20701787,81.921,81.874,0.95148753]
[1773023388723,1.0265758,81.92,81.874,0.95148753]
[1773023389319,1.0265758,81.92,81.875,0.95148753]
[1773023389534,12.20623067,81.926,81.877,0.95148753]
[1773023390017,1.0265758,81.928,81.877,0.95148753]
[1773023390214,1.0265758,81.935,81.88,0.95148753]
[1773023390416,1.0265758,81.944,81.888,3.69383402]
[1773023390616,1.0265758,81.944,81.889,0.95148753]
[1773023391520,1.0265758,81.944,81.892,0.95148753]
[1773023391817,1.0265758,81.942,81.892,0.95148753]
[1773023391998,1.0265758,81.939,81.892,0.95148753]
[1773023394002,12.20434963,81.938,81.893,12.21105589]
[1773023394197,1.0265758,81.937,81.893,42.73869561]
[1773023394721,1.0265758,81.937,81.894,0.95148753]
[1773023395201,1.0265758,81.937,81.894,1.23581067]
[1773023395400,1.0265758,81.937,81.895,0.95148753]
[1773023397324,1.0265758,81.935,81.896,43.68861754]
[1773023397506,1.0265758,81.935,81.897,0.95148753]
[1773023399722,1.0265758,81.933,81.899,0.95148753]
[1773023400118,1.0265758,81.933,81.895,12.21067566]
[1773023400322,1.0265758,81.929,81.895,12.21067566]
[1773023400726,1.0265758,81.929,81.896,0.95148753]
[1773023400924,1.0265758,81.919,81.877,0.95148753]
[1773023401226,1.0265758,81.919,81.853,61.08448485]
[1773023401227,1.0265758,81.909,81.872,12.214188]
[1773023401837,1.0265758,81.907,81.872,12.214188]
[1773023402411,1.0265758,81.907,81.873,0.95148753]
[1773023402627,1.0265758,81.929,81.876,0.95148753]
[1773023402827,1.0265758,81.929,81.879,0.95148753]
[1773023403130,1.0265758,81.929,81.881,0.9973345]
[1773023403340,1.0265758,81.929,81.882,0.28432314]
[1773023403523,0.95181301,81.928,81.884,1.13949607]
[1773023403713,0.95181301,81.928,81.885,0.9973345]
[1773023404028,0.95181301,81.928,81.887,0.9973345]
[1773023405534,0.95181301,81.926,81.887,0.9973345]
[1773023405738,35.08240191,81.94,81.887,0.9973345]
[1773023405739,0.95181301,81.93,81.887,0.9973345]
[1773023405936,13.15666768,81.935,81.887,0.9973345]
[1773023406116,13.15666768,81.935,81.889,0.9973345]
[1773023406811,12.20409043,81.94,81.889,1.28165764]
[1773023407042,0.759,81.941,81.891,0.9973345]
[1773023407230,0.759,81.941,81.89,13.66290948]
[1773023407231,0.759,81.941,81.895,0.9973345]
[1773023407431,1.01134217,81.94,81.895,0.9973345]
[1773023407736,1.01134217,81.939,81.895,0.9973345]
[1773023408431,1.01134217,81.937,81.897,1.03175702]
[1773023408829,1.01134217,81.937,81.896,12.21060857]
[1773023409022,1.01134217,81.919,81.886,12.21207018]
[1773023410024,12.20405174,81.94,81.887,1.03175702]
[1773023410236,1.01134217,81.939,81.887,1.03175702]
[1773023410441,0.759,81.941,81.886,42.74231955]
[1773023410442,1.01134217,81.937,81.889,1.03175702]
[1773023410637,1.29566531,81.937,81.889,1.03175702]
[1773023410824,1.01134217,81.929,81.889,1.03175702]
[1773023411938,1.01134217,81.937,81.889,1.03175702]
[1773023413929,0.759,81.941,81.892,1.03175702]
[1773023414246,1.01134217,81.94,81.894,1.03175702]
[1773023414533,1.01134217,81.94,81.883,1.03175702]
[1773023414534,1.01134217,81.919,81.883,1.03175702]
[1773023415137,12.20405174,81.94,81.883,1.03175702]
[1773023415138,1.01134217,81.927,81.883,1.03175702]
[1773023415319,0.759,81.941,81.887,3.69383402]
[1773023415524,0.759,81.941,81.89,1.03175702]
[1773023415736,0.759,81.941,81.891,1.17391859]
[1773023416041,0.759,81.941,81.896,1.03175702]
[1773023416340,12.20079431,81.962,81.898,1.03175702]
[1773023416545,1.01134217,81.979,81.91,1.03175702]
[1773023416726,1.29566531,81.977,81.91,1.03175702]
[1773023416922,1.29566531,81.977,81.901,3.69383402]
[1773023416923,1.01134217,81.976,81.917,1.03175702]
[1773023418341,1.01134217,81.976,81.92,1.03175702]
[1773023418546,1.01134217,81.984,81.928,1.03175702]
[1773023418728,7.81737326,81.989,81.939,1.03175702]
[1773023418933,7.81737326,81.989,81.931,3.83599559]
[1773023418934,0.2,82.0,81.936,1.03175702]
[1773023419132,1e-08,82.01,81.952,0.14216157]
[1773023419336,1e-08,82.01,81.945,0.14216157]
[1773023419337,1e-08,82.01,81.959,1.03175702]
[1773023419572,1e-08,82.01,81.978,1.03175702]
[1773023419936,1e-08,82.02,81.996,1.03175702]
[1773023420454,1.01134218,82.02,81.987,12.19705563]
[1773023420659,1.01134218,82.02,81.988,1.03175702]
[1773023420835,1e-08,82.02,81.988,1.03175702]
[1773023421739,1.01134217,82.019,81.981,12.19787931]
[1773023423031,1.01134217,82.009,81.964,12.20047825]
[1773023423651,1.01134217,82.009,81.964,13.23223527]
[1773023423854,1.01134217,82.009,81.964,12.20047825]
[1773023424232,1.01134217,81.999,81.964,13.23223527]
[1773023424849,1.01134217,81.999,81.964,12.20047825]
[1773023425539,1.01134217,81.999,81.959,13.23297958]
[1773023425742,42.67876303,82.008,81.959,12.20122256]
[1773023425743,1.01134217,81.989,81.959,12.20122256]
[1773023425928,1.01134217,81.989,81.952,31.53708086]
[1773023425929,1.01134217,81.989,81.954,12.20182299]
[1773023426245,0.97453591,81.979,81.958,46.17363298]
[1773023428251,0.28432314,81.992,81.931,1.03175702]
[1773023428252,12.23694318,81.97,81.931,1.03175702]
[1773023428449,42.69438141,81.978,81.931,1.03175702]
[1773023428654,12.19839469,81.978,81.931,1.03175702]
[1773023429147,42.69438141,81.978,81.931,1.03175702]
[1773023430139,12.19839469,81.978,81.931,1.03175702]
[1773023430340,12.19754358,81.984,81.934,1.03175702]
[1773023430554,12.19754358,81.984,81.934,1.31608016]
[1773023430846,12.23694318,81.98,81.935,1.03175702]
[1773023432634,0.28432314,81.992,81.928,12.20572248]
[1773023432635,12.23694318,81.96,81.928,12.20572248]
[1773023432846,12.23694318,81.97,81.929,1.03175702]
[1773023434256,12.23694318,81.95,81.914,1.02868992]
[1773023434744,12.20271144,81.949,81.916,12.20753733]
[1773023436744,12.20271144,81.949,81.918,13.2360192]
[1773023437080,42.70949004,81.949,81.909,1.02868992]
[1773023437266,12.23694318,81.94,81.898,12.21017696]
[1773023437558,12.23694318,81.92,81.893,12.21105589]
[1773023437739,12.23694318,81.92,81.877,1.02868992]
[1773023438652,12.23694318,81.92,81.871,42.75018015]
[1773023438653,12.20718026,81.919,81.879,1.02868992]
[1773023439464,42.72513091,81.919,81.879,1.02868992]
[1773023440263,12.20718026,81.919,81.879,1.02868992]
[1773023440643,0.28432314,81.928,81.881,1.02868992]
[1773023440879,12.20569029,81.929,81.881,1.02868992]
[1773023441872,12.20434963,81.938,81.882,1.02868992]
[1773023442164,12.20300926,81.947,81.889,1.02868992]
[1773023442466,6.85712665,81.948,81.898,1.02868992]
[1773023442765,6.85712665,81.948,81.901,1.02868992]
[1773023442969,0.28432314,81.972,81.901,1.02868992]
[1773023442970,30.49735709,81.975,81.906,1.02868992]
[1773023443157,12.19898992,81.974,81.906,1.02868992]
[1773023443669,30.49735709,81.975,81.9,103.78510378]
[1773023443670,12.23694318,82.0,81.928,1.31301306]
[1773023443849,0.28432314,81.999,81.929,1.02868992]
[1773023444043,0.28432314,81.999,81.93,1.31301306]
[1773023444243,0.28432314,81.999,81.931,1.31301306]
[1773023444561,0.28432314,81.999,81.933,1.17085149]
[1773023444751,12.19527067,81.999,81.939,1.17085149]
[1773023444953,12.19527067,81.999,81.94,1.17085149]
[1773023445152,12.19527067,81.999,81.942,1.17085149]
[1773023445353,12.19527067,81.999,81.943,1.31301306]
[1773023445564,12.19527067,81.999,81.945,1.02868992]
[1773023446453,42.68344735,81.999,81.947,1.02868992]
[1773023447653,12.19527067,81.999,81.947,1.02868992]
[1773023448467,42.68344735,81.999,81.949,1.02868992]
[1773023450467,12.19527067,81.999,81.951,1.02868992]
[1773023451066,0.28432314,81.998,81.951,1.02868992]
[1773023451266,0.28432314,81.998,81.929,1.02868992]
[1773023451267,12.23694318,81.97,81.929,1.02868992]
[1773023452581,12.19973404,81.969,81.931,1.02868992]
[1773023454983,12.19973404,81.969,81.933,1.02868992]
[1773023455856,12.23694318,81.96,81.911,1.02868992]
[1773023456057,12.23694318,81.95,81.911,1.02868992]
[1773023456962,12.20271144,81.949,81.913,1.02868992]
[1773023458053,12.20271144,81.949,81.915,1.02868992]
[1773023458974,42.70949004,81.949,81.915,1.02868992]
[1773023459477,12.20271144,81.949,81.915,1.02868992]
[1773023460064,12.23694318,81.95,81.916,12.20762732]
[1773023460472,12.23694318,81.95,81.917,1.02868992]
[1773023460655,12.23694318,81.96,81.917,1.02868992]
[1773023461175,12.23694318,81.95,81.913,1.02868992]
[1773023462964,1.14476955,81.973,81.904,44.18638441]
[1773023462965,12.23694318,81.97,81.915,1.02868992]
[1773023463173,12.19975528,81.969,81.915,1.02868992]
[1773023463559,12.23694318,81.96,81.915,1.02868992]
[1773023463777,0.28432314,81.959,81.915,1.02868992]
[1773023463979,12.23694318,81.95,81.915,1.02868992]
[1773023464874,12.20271144,81.949,81.916,12.20762732]
[1773023465465,42.70949004,81.949,81.915,1.02868992]
[1773023465866,12.23694318,81.93,81.876,1.02868992]
[1773023466071,12.23694318,81.91,81.876,1.02868992]
[1773023466968,12.20867059,81.909,81.876,1.02868992]
[1773023467167,12.20867059,81.909,81.878,1.02868992]
[1773023467474,12.20658423,81.923,81.878,1.02868992]
[1773023467867,12.23694318,81.92,81.878,1.02868992]
[1773023468887,42.7230448,81.923,81.878,1.02868992]
[1773023469284,30.51646057,81.923,81.879,12.21314378]
[1773023469486,12.23694318,81.92,81.88,1.02868992]
[1773023470195,12.20569029,81.929,81.88,1.02868992]
[1773023470500,13.68960624,81.934,81.881,1.02868992]
[1773023470700,13.68960624,81.934,81.882,1.02868992]
[1773023470868,1.48456955,81.934,81.888,1.02868992]
[1773023471071,1.48456955,81.934,81.882,0.28432314]
[1773023471072,12.23694318,81.97,81.906,3.69383402]
[1773023471291,12.19973404,81.969,81.912,1.02868992]
[1773023471479,12.19973404,81.969,81.913,1.02868992]
[1773023471690,12.23694318,81.96,81.913,1.02868992]
[1773023472484,12.23694318,81.95,81.913,1.02868992]
[1773023473889,12.20271144,81.949,81.915,1.02868992]
[1773023476390,12.20271144,81.949,81.893,3.69383402]
[1773023476391,12.20271144,81.949,81.917,1.02868992]
[1773023476984,12.20179032,81.956,81.917,1.02868992]
[1773023478185,1.22168236,81.958,81.917,1.02868992]
[1773023478391,12.19759329,81.984,81.929,1.02868992]
[1773023478989,7.72640036,81.988,81.929,1.02868992]
[1773023479185,7.72640036,81.988,81.939,1.02868992]
[1773023479388,12.19705563,81.987,81.939,1.02868992]
[1773023479677,42.6896947,81.987,81.939,1.02868992]
[1773023480280,12.19705563,81.987,81.941,1.02868992]
[1773023481897,42.6896947,81.987,81.941,1.02868992]
[1773023482899,42.6896947,81.987,81.943,1.02868992]
[1773023485100,12.19705563,81.987,81.944,42.71209605]
[1773023485308,12.19705563,81.987,81.945,1.02868992]
[1773023485604,12.19705563,81.987,81.946,1.02868992]
[1773023487888,42.6896947,81.987,81.948,1.02868992]
[1773023489199,12.19705563,81.987,81.948,1.02868992]
[1773023489905,42.69386062,81.979,81.945,13.66290948]
[1773023490687,12.24806054,81.97,81.945,13.66290948]
[1773023490997,12.24806054,81.97,81.941,13.23257296]
[1773023491194,42.69386062,81.979,81.942,1.02868992]
[1773023491510,12.19824589,81.979,81.942,1.02868992]
[1773023494518,7.72640036,81.988,81.944,1.02868992]
[1773023494519,12.19705563,81.987,81.944,1.02868992]
[1773023494690,12.19705563,81.987,81.945,1.02868992]
[1773023496191,12.24806054,81.96,81.924,1.02868992]
[1773023496710,12.20122256,81.959,81.925,1.02868992]
[1773023497304,12.24806054,81.95,81.92,12.2069735]
[1773023497988,12.24806054,81.95,81.91,1.02868992]
[1773023498188,42.70427896,81.959,81.903,1.02868992]
[1773023498189,12.24806054,81.94,81.903,1.02868992]
[1773023499003,12.24806054,81.93,81.879,1.02868992]
[1773023499211,12.24806054,81.92,81.879,1.02868992]
[1773023499503,12.24806054,81.93,81.879,1.02868992]
[1773023504918,12.24806054,81.95,81.882,1.02868992]
[1773023505218,12.24806054,81.94,81.885,1.02868992]
[1773023506523,42.99381318,81.949,81.885,1.02868992]
[1773023506715,12.24806054,81.94,81.885,1.02868992]
[1773023506911,12.24806054,81.96,81.888,1.02868992]
[1773023507221,42.9886021,81.959,81.888,1.02868992]
[1773023510626,42.9886021,81.959,81.886,107.49668187]
[1773023510627,12.24806054,81.94,81.891,1.02868992]
[1773023511920,12.24806054,81.95,81.891,1.02868992]
[1773023512123,0.28432314,81.949,81.891,1.02868992]
[1773023512528,0.28432314,81.947,81.893,1.02868992]
[1773023512906,12.20286035,81.948,81.894,1.02868992]
[1773023513203,12.20286035,81.948,81.895,1.02868992]
[1773023515218,30.50686097,81.949,81.897,1.02868992]
[1773023515715,30.50686097,81.949,81.899,1.02868992]
[1773023515927,12.20181807,81.955,81.902,1.02868992]
[1773023516527,7.69950161,81.956,81.906,1.02868992]
[1773023516832,4.57688705,81.97,81.924,1.02868992]
[1773023517307,4.57688705,81.97,81.901,3.69383402]
[1773023517308,42.69906915,81.969,81.926,1.02868992]
[1773023518512,12.19973404,81.969,81.926,1.02868992]
[1773023519229,12.19973404,81.969,81.928,1.02868992]
[1773023521520,42.69394048,81.979,81.93,1.02868992]
[1773023522634,12.19752429,81.984,81.932,1.02868992]
[1773023522934,0.759,81.986,81.946,1.02868992]
[1773023523314,12.1959492,81.995,81.946,1.02868992]
[1773023523729,12.25454295,82.0,81.949,1.02868992]
[1773023524034,12.25454295,81.99,81.949,1.02868992]
[1773023525723,12.1967581,81.989,81.951,1.02868992]
[1773023529027,12.1967581,81.989,81.947,30.50752315]
[1773023529028,12.1967581,81.989,81.953,1.02868992]
[1773023530944,42.68865335,81.989,81.955,1.02868992]
[1773023531420,12.1967581,81.989,81.955,1.02868992]
[1773023533037,30.48831064,81.999,81.957,1.02868992]
[1773023533038,12.19527067,81.999,81.957,1.02868992]
[1773023533346,12.19527067,81.999,81.956,42.70584215]
[1773023533347,12.1922969,82.019,81.961,1.02868992]
[1773023533541,12.1922969,82.019,81.962,1.02868992]
[1773023533722,12.1922969,82.019,81.963,1.31301306]
[1773023534034,12.1922969,82.019,81.965,1.02868992]
[1773023534618,1e-08,82.02,81.97,3.69383402]
[1773023534818,1e-08,82.02,81.978,1.02868992]
[1773023535019,1e-08,82.02,81.98,1.02868992]
[1773023535227,12.25454296,82.02,81.98,1.02868992]
[1773023535930,1e-08,82.02,81.98,1.02868992]
[1773023536948,12.25454296,82.02,81.98,1.02868992]
[1773023537819,12.1922969,82.019,81.981,12.1979483]
[1773023538032,12.1922969,82.019,81.982,1.02868992]
[1773023538635,12.25454295,82.01,81.978,1.02868992]
[1773023538945,12.25454295,82.01,81.971,12.19931506]
[1773023539518,4.57064597,82.01,81.972,1.02868992]
[1773023540453,12.1937836,82.009,81.974,1.02868992]
[1773023540946,4.57064598,82.02,81.974,1.02868992]
[1773023541256,4.57064597,82.01,81.974,1.02868992]
[1773023542143,12.19251603,82.018,81.974,1.02868992]
[1773023542449,4.57064597,82.01,81.969,12.19973404]
[1773023542743,30.48074226,82.019,81.945,1.02868992]
[1773023542744,4.57064597,82.0,81.945,1.02868992]
[1773023543043,0.28432314,82.009,81.945,1.02868992]
[1773023543044,4.57064597,81.99,81.945,1.02868992]
[1773023543236,4.57064597,82.0,81.945,1.02868992]
[1773023543844,4.57156398,81.98,81.945,1.02868992]
[1773023544547,12.19824589,81.979,81.947,1.02868992]
[1773023545046,42.69386062,81.979,81.947,1.02868992]
[1773023545220,12.19824589,81.979,81.947,1.02868992]
[1773023545624,12.19824589,81.979,81.937,1.02868992]
[1773023545926,12.25042326,81.96,81.929,1.02868992]
[1773023546444,12.25042326,81.97,81.931,1.02868992]
[1773023546655,0.759,81.999,81.906,0.28432314]
[1773023546656,0.28432314,81.989,81.933,1.02868992]
[1773023546862,12.25042326,81.99,81.934,1.02868992]
[1773023547340,42.6855296,81.995,81.935,1.02868992]
[1773023547341,12.25042326,81.98,81.935,1.02868992]
[1773023548343,12.25042326,81.99,81.935,1.02868992]
[1773023549139,12.1967581,81.989,81.937,1.02868992]
[1773023549850,12.19613568,81.994,81.941,1.02868992]
[1773023550143,12.19613568,81.994,81.943,1.02868992]
[1773023550353,12.19613568,81.994,81.944,0.28432314]
[1773023550537,12.19613568,81.994,81.945,1.02868992]
[1773023550923,12.19613568,81.994,81.95,1.02868992]
[1773023551138,0.759,81.998,81.951,1.02868992]
[1773023551344,0.759,81.998,81.956,1.02868992]
[1773023551532,0.759,81.998,81.952,0.28432314]
[1773023551533,12.19276307,82.016,81.962,4.82477569]
[1773023551741,12.19276307,82.016,81.965,1.02868992]
[1773023552154,1e-08,82.02,81.965,1.02868992]
[1773023552334,1e-08,82.02,81.976,1.02868992]
[1773023552748,1e-08,82.02,81.971,0.28432314]
[1773023552749,1e-08,82.02,81.981,1.02868992]
[1773023552938,1e-08,82.02,81.992,1.02868992]
[1773023553444,0.2,82.03,81.992,1.02868992]
[1773023553445,0.2,82.03,81.993,1.02868992]
[1773023553652,12.18932458,82.039,81.997,1.02868992]
[1773023555357,12.18932458,82.039,81.999,1.02868992]
[1773023555763,12.45042326,82.04,81.999,1.02868992]
[1773023556262,12.18932458,82.039,81.999,1.02868992]
[1773023557650,12.18932458,82.039,82.001,1.02868992]
[1773023558032,0.2,82.04,82.001,1.31301306]
[1773023558242,0.2,82.04,82.002,1.31301306]
[1773023558442,0.2,82.04,82.004,1.02868992]
[1773023558643,0.1,82.05,82.028,1.02868992]
[1773023559138,0.2,82.06,82.009,0.93386452]
[1773023559342,0.2,82.06,82.019,0.93386452]
[1773023559737,0.2,82.06,82.024,0.93386452]
[1773023559954,0.2,82.06,82.025,0.93386452]
[1773023560347,0.2,82.07,82.025,0.93386452]
[1773023560537,0.48878788,82.068,82.025,0.93386452]
[1773023561866,0.2,82.07,82.027,0.93386452]
[1773023562151,0.2,82.07,82.031,0.93386452]
[1773023562354,0.2,82.07,82.032,1.21818766]
[1773023562554,0.2,82.07,82.034,1.07602609]
[1773023562760,0.2,82.07,82.035,0.93386452]
[1773023563971,0.2,82.07,82.037,0.93386452]
[1773023565661,1e-08,82.07,82.059,0.93386452]
[1773023566067,1e-08,82.07,82.061,0.93386452]
[1773023567157,0.1,82.09,82.061,0.93386452]
[1773023567363,4.76114127,82.12,82.064,0.93386452]
[1773023567546,4.76114127,82.12,82.065,0.93386452]
[1773023567547,12.96318496,82.12,82.065,0.93386452]
[1773023567753,12.37890409,82.11,82.066,0.93386452]
[1773023567953,0.58576427,82.109,82.066,0.93386452]
[1773023568153,0.58576427,82.109,82.071,0.93386452]
[1773023568945,0.58542822,82.107,82.071,0.93386452]
[1773023569148,12.17908121,82.108,82.067,12.18516577]
[1773023569149,0.58542822,82.099,82.067,12.18516577]
[1773023569766,0.58510024,82.089,82.052,0.93386452]
[1773023570264,0.58510024,82.087,82.054,0.93386452]
[1773023570967,0.58478812,82.098,82.055,0.93386452]
[1773023572043,12.18071305,82.097,82.056,42.65379739]
[1773023572247,12.76376602,82.097,82.057,0.93386452]
[1773023572463,0.58305297,82.096,82.057,0.93386452]
[1773023573053,0.58305297,82.079,82.045,46.85305515]
[1773023573251,12.79119929,82.07,82.045,46.85305515]
[1773023573465,0.58391276,82.082,82.046,0.93386452]
[1773023573968,0.58391276,82.079,82.046,12.18828462]
[1773023574153,12.20728653,82.06,82.045,37.89225947]
[1773023574470,12.20728653,82.06,82.027,12.19101156]
[1773023575052,12.20728653,82.06,82.028,0.99954655]
[1773023575653,12.20728653,82.08,82.028,0.99954655]
[1773023576466,12.20728653,82.07,82.03,0.99954655]
[1773023576867,12.20728653,82.06,82.024,12.19143456]
[1773023577067,12.20728653,82.06,82.024,13.19098111]
[1773023577376,12.20728653,82.06,82.025,0.99954655]
[1773023577577,12.20728653,82.07,82.025,0.99954655]
[1773023577784,42.64184505,82.079,82.025,0.99954655]
[1773023578070,12.20728653,82.07,82.027,0.99954655]
[1773023580049,12.20728653,82.06,82.028,12.19095918]
[1773023580253,12.20728653,82.06,82.028,0.99954655]
[1773023580470,12.20728653,82.06,82.028,13.19050573]
[1773023580663,12.20728653,82.06,82.029,0.99954655]
[1773023581871,12.20728653,82.05,82.01,0.99954655]
[1773023582170,42.64704089,82.069,82.011,13.19303278]
[1773023582171,12.20728653,82.04,82.011,13.19303278]
[1773023582474,12.20728653,82.04,82.012,0.99954655]
[1773023582674,3.69383402,82.076,82.012,0.99954655]
[1773023582675,7.43446481,82.102,82.012,0.99954655]
[1773023582849,12.20728653,82.07,82.016,0.99954655]
[1773023583053,12.18041632,82.099,82.016,0.99954655]
[1773023583054,12.20728653,82.06,82.016,0.99954655]
[1773023583558,0.28432314,82.072,82.016,0.99954655]
[1773023583559,12.20728653,82.05,82.016,0.99954655]
[1773023583759,12.20728653,82.06,82.016,0.99954655]
[1773023583968,12.18635372,82.059,82.018,0.99954655]
[1773023585073,12.20728653,82.05,82.012,13.19273952]
[1773023585275,12.20728653,82.04,81.994,30.49003578]
[1773023585453,42.65223802,82.059,82.0,12.19512195]
[1773023585454,12.20728653,82.03,82.0,12.19512195]
[1773023585659,12.20728653,82.03,81.997,0.99954655]
[1773023585966,12.20728653,82.03,82.0,12.19512195]
[1773023585967,12.19081056,82.029,82.0,12.19512195]
[1773023586162,12.20728653,82.04,82.001,0.99954655]
[1773023586367,48.70170926,82.133,82.001,0.99954655]
[1773023586368,12.20728653,82.05,82.001,0.99954655]
[1773023587775,12.20728653,82.04,82.003,0.99954655]
[1773023590566,12.18932458,82.039,82.005,0.99954655]
[1773023592874,42.66263605,82.039,82.005,0.99954655]
[1773023593464,42.66263605,82.039,81.973,3.69383402]
[1773023593465,12.20728653,82.02,81.988,0.99954655]
[1773023593661,12.20728653,82.02,81.944,1.14170812]
[1773023593882,12.20728653,82.02,81.952,0.99954655]
[1773023594474,12.20728653,82.0,81.952,0.99954655]
[1773023594867,12.20728653,81.99,81.952,0.99954655]
[1773023595068,12.20728653,82.0,81.954,0.99954655]
[1773023595376,12.20728653,82.03,81.96,8.51860971]
[1773023595566,12.20728653,82.03,81.966,0.99954655]
[1773023595771,12.20728653,82.03,81.973,0.99954655]
[1773023596386,0.28432314,82.042,81.973,0.99954655]
[1773023596387,12.20728653,82.02,81.973,0.99954655]
[1773023596970,42.67303916,82.019,81.975,0.99954655]
[1773023597590,12.1922969,82.019,81.975,0.99954655]
[1773023601488,12.20728653,82.03,81.977,0.99954655]
[1773023602902,0.28432314,82.029,81.977,0.99954655]
[1773023603097,12.20728653,82.02,81.977,0.99954655]
[1773023603477,12.20728653,82.0,81.968,0.99954655]
[1773023603681,12.20728653,82.0,81.969,12.19973404]
[1773023603878,12.20728653,82.0,81.958,0.99954655]
[1773023604192,12.20728653,81.99,81.955,12.20181807]
[1773023604693,12.20728653,81.99,81.956,0.99954655]
[1773023605196,12.20728653,81.99,81.955,12.20181807]
[1773023605492,3.69383402,82.026,81.943,30.50898704]
[1773023605493,12.20728653,82.01,81.958,0.99954655]
[1773023605683,0.28432314,82.019,81.958,0.99954655]
[1773023606890,103.61431095,82.035,81.958,0.99954655]
[1773023606891,12.24121715,82.03,81.961,0.99954655]
[1773023607394,12.24121715,82.03,81.96,3.69383402]
[1773023607395,12.24121715,82.02,81.964,0.99954655]
[1773023607695,42.67303916,82.019,81.966,0.99954655]
[1773023607895,0.28432314,82.018,81.966,0.99954655]
[1773023608102,12.24121715,82.01,81.966,0.99954655]
[1773023609595,4.5708571,82.01,81.967,12.20003172]
[1773023609771,4.5708571,82.01,81.968,0.99954655]
[1773023611497,12.19259421,82.017,81.969,0.99954655]
[1773023611689,12.19259421,82.017,81.971,0.99954655]
[1773023611888,12.19259421,82.017,81.974,0.99954655]
[1773023613189,30.47805482,82.027,81.976,0.99954655]
[1773023613491,4.5708571,82.02,81.976,0.99954655]
[1773023614998,30.47805482,82.027,81.976,0.99954655]
[1773023615189,12.19081056,82.029,81.978,0.99954655]
[1773023615390,12.18962175,82.037,81.979,0.99954655]
[1773023615589,12.18962175,82.037,81.982,0.99954655]
[1773023615784,12.18962175,82.037,81.983,1.14170812]
[1773023615985,42.66367614,82.037,81.985,0.99954655]
[1773023616185,4.5708571,82.03,81.985,0.99954655]
[1773023617397,12.19081056,82.029,81.987,0.99954655]
[1773023617786,42.66783697,82.029,81.987,0.99954655]
[1773023619585,12.23702175,82.03,81.988,12.19690686]
[1773023619783,12.23702175,82.02,81.982,12.19769745]
[1773023620410,12.23702175,82.02,81.983,0.99954655]
[1773023622914,12.1922969,82.019,81.985,0.99954655]
[1773023624401,12.23702175,82.04,81.985,0.99954655]
[1773023624896,12.18783897,82.049,81.989,0.28432314]
[1773023625102,12.18783897,82.049,81.991,0.99954655]
[1773023625298,12.18783897,82.049,81.992,0.28432314]
[1773023625601,12.18783897,82.049,81.994,0.28432314]
[1773023625803,12.18783897,82.049,81.995,0.99954655]
[1773023625804,42.6574364,82.049,81.995,0.99954655]
[1773023627291,12.23702175,82.04,81.997,0.99954655]
[1773023628213,12.23702175,82.03,81.997,0.99954655]
[1773023629511,12.23702175,82.04,81.999,0.99954655]
[1773023630900,24.42624246,82.04,82.001,0.99954655]
[1773023631101,54.89918248,82.04,82.001,0.99954655]
[1773023631796,24.42624246,82.04,82.001,0.99954655]
[1773023633307,0.28432314,82.048,82.003,0.99954655]
[1773023633511,12.23702175,82.04,82.003,0.99954655]
[1773023633817,12.18754189,82.051,82.003,0.99954655]
[1773023634603,12.18701984,82.055,82.004,0.99954655]
[1773023634802,6.43649955,82.074,82.005,4.69338057]
[1773023635109,12.18427497,82.073,82.006,0.99954655]
[1773023635310,12.18427497,82.073,82.011,0.99954655]
[1773023635504,12.18427497,82.073,82.013,0.99954655]
[1773023635705,6.43649955,82.074,82.014,0.28432314]
[1773023635907,6.43649955,82.074,82.025,0.99954655]
[1773023636100,6.43649955,82.074,82.026,0.99954655]
[1773023637003,6.43649955,82.074,82.025,0.28432314]
[1773023637004,6.43649955,82.074,82.032,0.99954655]